bitfinex/quotes_BTCUSD_20250211
["timestamp","ask_amount","ask_price","bid_price","bid_amount"]
[1739233806251,0.1728427,97901.0,97900.0,0.19613615]
[1739233806913,0.0228427,97901.0,97900.0,0.18552772]
[1739233807321,0.0228427,97901.0,97900.0,0.18252772]
[1739233807729,0.0208427,97901.0,97900.0,0.18852772]
[1739233807914,0.1740587,97901.0,97900.0,0.18852772]
[1739233808270,0.0208427,97901.0,97900.0,0.18852772]
[1739233808988,0.0208427,97901.0,97900.0,0.19752772]
[1739233809207,0.1740587,97901.0,97900.0,0.19752772]
[1739233813526,0.0208427,97901.0,97900.0,0.19752772]
[1739233813671,0.0208427,97901.0,97900.0,0.2211002]
[1739233814106,0.1740587,97901.0,97900.0,0.19752772]
[1739233819444,0.0208427,97901.0,97900.0,0.19752772]
[1739233819778,0.16355937,97901.0,97900.0,0.19752772]
[1739233820185,0.17401941,97901.0,97900.0,0.19752772]
[1739233821549,0.02080341,97901.0,97900.0,0.2211002]
[1739233822171,0.02080341,97901.0,97900.0,0.2695002]
[1739233822375,0.01034337,97901.0,97900.0,0.2695002]
[1739233823160,0.0001067,97901.0,97900.0,0.2695002]
[1739233824696,0.0001067,97901.0,97900.0,0.29595217]
[1739233827920,0.0001067,97901.0,97900.0,0.27237969]
[1739233828138,0.0001067,97901.0,97900.0,0.28184627]
[1739233829444,0.0001067,97901.0,97900.0,0.27237969]
[1739233830906,0.0001067,97901.0,97900.0,0.27995441]
[1739233833013,0.0001067,97901.0,97900.0,0.27243441]
[1739233833229,0.0001067,97901.0,97900.0,0.34605716]
[1739233835286,0.0001067,97901.0,97900.0,0.27999441]
[1739233846682,0.0001067,97901.0,97900.0,0.14423441]
[1739233846886,0.1533227,97901.0,97900.0,0.14423441]
[1739233847092,0.16380666,97901.0,97900.0,0.14423441]
[1739233847720,0.16380666,97901.0,97900.0,0.13665969]
[1739233848347,0.16380666,97901.0,97900.0,0.11772772]
[1739233848749,0.01059066,97901.0,97900.0,0.11772772]
[1739233848981,0.16380666,97901.0,97900.0,0.11772772]
[1739233850697,0.01059066,97901.0,97900.0,0.11772772]
[1739233851131,0.16380666,97901.0,97900.0,0.11772772]
[1739233851823,0.01059066,97901.0,97900.0,0.11772772]
[1739233852586,0.16380666,97901.0,97900.0,0.11772772]
[1739233855560,0.01059066,97901.0,97900.0,0.11772772]
[1739233857119,0.16380666,97901.0,97900.0,0.11772772]
[1739233857542,0.01059066,97901.0,97900.0,0.11772772]
[1739233858122,0.01059066,97901.0,97900.0,0.13053615]
[1739233858690,0.01058704,97901.0,97900.0,0.13053615]
[1739233860403,0.0001067,97901.0,97900.0,0.13053615]
[1739233860811,0.0001067,97901.0,97900.0,0.11772772]
[1739233861007,0.0001067,97901.0,97900.0,0.10272772]
[1739233861307,0.0001067,97901.0,97900.0,0.10972772]
[1739233862457,0.0001067,97901.0,97900.0,0.12472772]
[1739233862670,0.0001067,97901.0,97900.0,0.27094472]
[1739233862869,0.0001067,97901.0,97900.0,0.33703405]
[1739233863071,0.0001067,97901.0,97900.0,0.35903405]
[1739233863271,0.0001067,97901.0,97900.0,0.35203405]
[1739233863473,0.0001067,97901.0,97900.0,0.33703405]
[1739233863701,0.0001067,97901.0,97900.0,0.34403405]
[1739233863907,0.0001067,97901.0,97900.0,0.35203405]
[1739233864106,0.0001067,97901.0,97900.0,0.35903405]
[1739233865349,0.0001067,97901.0,97900.0,0.34403405]
[1739233866398,0.0001067,97901.0,97900.0,0.35903405]
[1739233867590,0.0001067,97901.0,97900.0,0.43423405]
[1739233869243,0.0001067,97901.0,97900.0,0.44181139]
[1739233869382,0.0001067,97901.0,97900.0,0.46481139]
[1739233870370,0.0001067,97901.0,97900.0,0.50981139]
[1739233870607,0.0001067,97901.0,97900.0,0.61202679]
[1739233872437,0.0001067,97901.0,97900.0,1.07262679]
[1739233872963,0.0001067,97901.0,97900.0,2.56562679]
[1739233873326,0.0001067,97901.0,97900.0,2.57262679]
[1739233873506,0.0001067,97901.0,97900.0,2.56562679]
[1739233873709,0.0001067,97901.0,97900.0,2.55062679]
[1739233873929,0.0001067,97901.0,97900.0,2.55762679]
[1739233875007,0.0001067,97901.0,97900.0,2.57262679]
[1739233875228,0.0001067,97901.0,97900.0,2.72262679]
[1739233875573,0.0001067,97901.0,97900.0,2.70762679]
[1739233875776,0.0001067,97901.0,97900.0,2.72262679]
[1739233876942,0.08171854,97925.0,97900.0,2.72262679]
[1739233876943,0.08171854,97946.0,97929.0,0.1229]
[1739233877248,0.01051828,97945.0,97941.0,0.10250365]
[1739233877370,0.01051828,97945.0,97944.0,0.10250365]
[1739233877570,0.00130531,97949.0,97944.0,0.10250365]
[1739233877785,0.00130531,97949.0,97946.0,0.10250365]
[1739233878857,0.00130531,97949.0,97948.0,0.2013238]
[1739233880168,0.00130531,97949.0,97948.0,0.2083238]
[1739233882010,0.00130531,97949.0,97948.0,0.3764658]
[1739233883451,0.00130531,97949.0,97948.0,0.2233238]
[1739233883614,0.00130531,97949.0,97948.0,0.28761512]
[1739233884721,0.00130531,97949.0,97948.0,0.1530638]
[1739233884938,0.15444531,97949.0,97948.0,0.1530638]
[1739233885164,0.16501083,97949.0,97948.0,0.12450365]
[1739233885321,0.24361083,97949.0,97948.0,0.12450365]
[1739233887081,0.24361083,97949.0,97948.0,0.11750365]
[1739233887291,0.39361083,97949.0,97948.0,0.12350365]
[1739233887481,0.39361083,97949.0,97948.0,0.021]
[1739233887709,0.39361083,97949.0,97948.0,0.015]
[1739233887710,0.43931083,97949.0,97948.0,0.015]
[1739233887881,0.153167,97932.0,97931.0,0.00764]
[1739233888060,0.153167,97932.0,97931.0,0.11027638]
[1739233888262,0.16371759,97932.0,97931.0,0.11027638]
[1739233888935,0.01055059,97932.0,97931.0,0.10263638]
[1739233889117,0.153165,97934.0,97931.0,0.10263638]
[1739233889321,0.15444242,97933.0,97932.0,0.10250365]
[1739233889490,0.16371708,97933.0,97932.0,0.10250365]
[1739233890976,0.16371708,97933.0,97932.0,0.10950365]
[1739233891133,0.16371708,97933.0,97932.0,0.10250365]
[1739233891365,0.16371708,97933.0,97932.0,0.10850365]
[1739233891641,0.16371708,97933.0,97932.0,0.10250365]
[1739233891875,0.24242368,97933.0,97932.0,0.10250365]
[1739233892110,0.24242368,97933.0,97932.0,0.11550365]
[1739233892580,0.24242368,97933.0,97932.0,0.10850365]
[1739233892830,0.24242368,97933.0,97932.0,0.11550365]
[1739233893063,0.24242368,97933.0,97932.0,0.12250365]
[1739233894066,0.24242368,97933.0,97932.0,0.10950365]
[1739233894463,0.49913025,97933.0,97932.0,0.02]
[1739233895471,0.15,97932.0,97931.0,0.00013273]
[1739233895766,0.31498395,97932.0,97931.0,0.00013273]
[1739233895968,0.3137073,97932.0,97931.0,0.00013273]
[1739233896957,0.3137073,97932.0,97931.0,0.00213273]
[1739233897792,0.3147073,97932.0,97931.0,0.00213273]
[1739233898781,0.3147073,97932.0,97931.0,0.00013273]
[1739233898985,0.3137073,97932.0,97931.0,0.00313273]
[1739233899371,0.3147073,97932.0,97931.0,0.00013273]
[1739233899579,0.3147073,97932.0,97931.0,0.00313273]
[1739233900164,0.3147073,97932.0,97931.0,0.00013273]
[1739233900558,0.3147073,97932.0,97931.0,0.00213273]
[1739233900763,0.3137073,97932.0,97931.0,0.00213273]
[1739233900974,0.3147073,97932.0,97931.0,0.00213273]
[1739233901566,0.3137073,97932.0,97931.0,0.00213273]
[1739233901764,0.3147073,97932.0,97931.0,0.00013273]
[1739233902058,0.3147073,97932.0,97931.0,0.00313273]
[1739233902268,0.3137073,97932.0,97931.0,0.00013273]
[1739233902480,0.3147073,97932.0,97931.0,0.00013273]
[1739233902691,0.3147073,97932.0,97931.0,0.00213273]
[1739233903260,0.3147073,97932.0,97931.0,0.00513273]
[1739233903899,0.3137073,97932.0,97931.0,0.00513273]
[1739233904415,0.3147073,97932.0,97931.0,0.00513273]
[1739233904829,0.3923073,97932.0,97931.0,0.00513273]
[1739233905070,0.4380073,97932.0,97931.0,0.00513273]
[1739233905278,0.33617,97930.0,97929.0,0.00022386]
[1739233905491,0.49224809,97930.0,97929.0,0.00022386]
[1739233905699,0.50275728,97930.0,97929.0,0.00022386]
[1739233906698,0.1501506,97901.0,97900.0,0.00022407]
[1739233906865,0.1501506,97901.0,97900.0,0.10272772]
[1739233907065,0.1606349,97901.0,97900.0,0.10272772]
[1739233908599,0.1606349,97901.0,97900.0,0.11172772]
[1739233909613,0.1616349,97901.0,97900.0,0.11772772]
[1739233910220,0.17188538,97901.0,97900.0,0.11772772]
[1739233913692,0.17188538,97901.0,97900.0,0.10872772]
[1739233913902,0.17088538,97901.0,97900.0,0.10272772]
[1739233914127,0.17088538,97901.0,97900.0,0.11172772]
[1739233914343,0.17188538,97901.0,97900.0,0.11772772]
[1739233923923,0.32316226,97901.0,97900.0,0.11772772]
[1739233924134,0.32188538,97901.0,97900.0,0.01522407]
[1739233924942,0.32188538,97901.0,97900.0,0.00622407]
[1739233925141,0.32288538,97901.0,97900.0,0.00622407]
[1739233925547,0.32188538,97901.0,97900.0,0.00622407]
[1739233925882,0.32288538,97901.0,97900.0,0.00622407]
[1739233926086,0.32188538,97901.0,97900.0,0.00022407]
[1739233926354,0.32188538,97901.0,97900.0,0.00222407]
[1739233926558,0.32199198,97901.0,97900.0,0.00222407]
[1739233926941,0.32199198,97901.0,97900.0,0.00022407]
[1739233927144,0.40019198,97901.0,97900.0,0.00022407]
[1739233927358,0.44919198,97901.0,97900.0,0.00222407]
[1739233928498,0.48102575,97901.0,97900.0,0.00222407]
[1739233928701,0.48302575,97901.0,97900.0,0.00222407]
[1739233929103,0.48102575,97901.0,97900.0,0.00222407]
[1739233929277,0.48102575,97901.0,97900.0,0.00022407]
[1739233929491,0.48102575,97901.0,97900.0,0.00222407]
[1739233930725,0.48502575,97901.0,97900.0,0.00222407]
[1739233930847,0.48102575,97901.0,97900.0,0.00222407]
[1739233931246,0.48302575,97901.0,97900.0,0.00222407]
[1739233931855,0.49102575,97901.0,97900.0,0.00222407]
[1739233932059,0.49502575,97901.0,97900.0,0.00222407]
[1739233932256,0.84032575,97901.0,97900.0,0.00022407]
[1739233932647,0.84032575,97901.0,97900.0,0.00122407]
[1739233933388,0.84032575,97901.0,97900.0,0.00022407]
[1739233933582,0.83632575,97901.0,97900.0,0.00022407]
[1739233933912,0.83932575,97901.0,97900.0,0.00022407]
[1739233934462,0.83832575,97901.0,97900.0,0.00022407]
[1739233934871,0.84532575,97901.0,97900.0,0.00122407]
[1739233935257,0.83832575,97901.0,97900.0,0.00022407]
[1739233935635,0.84532575,97901.0,97900.0,0.00122407]
[1739233936000,0.84332575,97901.0,97900.0,0.001]
[1739233936531,0.84532575,97901.0,97900.0,0.001]
[1739233936774,0.183,97900.0,97899.0,8.6e-07]
[1739233936974,0.4454148,97900.0,97899.0,8.6e-07]
[1739233937181,0.45459615,97900.0,97899.0,8.6e-07]
[1739233937381,0.4897805,97900.0,97899.0,8.6e-07]
[1739233937791,0.84309486,97900.0,97899.0,8.6e-07]
[1739233937988,0.85009486,97900.0,97899.0,8.6e-07]
[1739233938356,0.153281,97859.0,97858.0,0.13835854]
[1739233938556,0.16371059,97859.0,97858.0,0.24096174]
[1739233938751,0.16371059,97859.0,97858.0,0.1026032]
[1739233938956,0.31371059,97859.0,97858.0,0.1026032]
[1739233939238,0.31371059,97859.0,97858.0,0.1831032]
[1739233939710,0.01042959,97859.0,97858.0,0.2398032]
[1739233940001,0.001,97859.0,97858.0,0.2328032]
[1739233940361,0.002,97859.0,97858.0,0.2398032]
[1739233940576,0.001,97859.0,97858.0,0.2458032]
[1739233940974,0.01140708,97859.0,97858.0,0.2398032]
[1739233941377,0.01240708,97859.0,97858.0,0.2548032]
[1739233941576,0.01240708,97859.0,97858.0,0.25471184]
[1739233941812,0.002,97859.0,97858.0,0.25471184]
[1739233942405,0.01240708,97859.0,97858.0,0.25471184]
[1739233943705,0.01240708,97859.0,97858.0,0.2546205]
[1739233944111,0.16568808,97859.0,97858.0,0.2546205]
[1739233944751,0.16568808,97859.0,97858.0,0.2049205]
[1739233944977,0.22558196,97859.0,97858.0,0.1244205]
[1739233945186,0.22430458,97859.0,97858.0,0.1244205]
[1739233946032,0.22430458,97859.0,97858.0,0.022]
[1739233946882,0.22330458,97859.0,97858.0,0.007]
[1739233947088,0.22330458,97859.0,97858.0,0.011]
[1739233947295,0.22230458,97859.0,97858.0,0.004]
[1739233947524,0.22230458,97859.0,97858.0,0.003]
[1739233947862,0.16368808,97859.0,97858.0,0.007]
[1739233948048,0.16496557,97859.0,97858.0,0.007]
[1739233948248,0.16368808,97859.0,97858.0,0.10950365]
[1739233949232,0.01040708,97859.0,97858.0,0.18820365]
[1739233949431,0.01046257,97861.0,97858.0,0.18520365]
[1739233949640,0.01046257,97861.0,97859.0,0.11018365]
[1739233949831,0.00127734,97883.0,97859.0,0.11018365]
[1739233949832,0.0096428,97860.0,97859.0,0.11018365]
[1739233949992,0.153274,97864.0,97859.0,0.11018365]
[1739233950172,0.00964753,97863.0,97859.0,0.11018365]
[1739233950380,0.153272,97865.0,97859.0,0.11018365]
[1739233950577,0.153279,97861.0,97859.0,0.11018365]
[1739233950767,0.00964335,97860.0,97859.0,0.12318365]
[1739233950970,0.00964335,97860.0,97859.0,0.11818365]
[1739233951171,0.16292335,97860.0,97859.0,0.12318365]
[1739233951375,0.16292335,97860.0,97859.0,0.11518365]
[1739233951574,0.16292335,97860.0,97859.0,0.12018365]
[1739233952647,0.16292335,97860.0,97859.0,0.11518365]
[1739233952822,0.16292335,97860.0,97859.0,0.12018365]
[1739233953248,0.00964335,97860.0,97859.0,0.12018365]
[1739233953562,0.00964335,97860.0,97859.0,0.11518365]
[1739233953758,0.001,97860.0,97859.0,0.12418365]
[1739233954119,0.0106482,97860.0,97859.0,0.12418365]
[1739233954938,0.001,97860.0,97859.0,0.12418365]
[1739233955400,0.00849682,97860.0,97859.0,0.12418365]
[1739233955630,0.001,97860.0,97859.0,0.20688365]
[1739233955979,0.00849682,97860.0,97859.0,0.20688365]
[1739233956445,0.001,97860.0,97859.0,0.20688365]
[1739233956767,0.001,97860.0,97859.0,0.19920365]
[1739233956982,0.00849682,97860.0,97859.0,0.20688365]
[1739233960352,0.001,97860.0,97859.0,0.20688365]
[1739233960508,0.00850416,97860.0,97859.0,0.20688365]
[1739233960702,0.001,97860.0,97859.0,0.20688365]
[1739233960902,0.00850416,97860.0,97859.0,0.20688365]
[1739233961097,0.001,97860.0,97859.0,0.20688365]
[1739233961503,0.00850416,97860.0,97859.0,0.20688365]
[1739233962363,0.00850416,97860.0,97859.0,0.12418365]
[1739233962364,0.16178416,97860.0,97859.0,0.12418365]
[1739233963884,0.16178416,97860.0,97859.0,0.11650365]
[1739233964429,0.22728961,97860.0,97859.0,0.11650365]
[1739233965450,0.16178416,97860.0,97859.0,0.11650365]
[1739233965628,0.16306153,97860.0,97859.0,0.11650365]
[1739233966411,0.16178416,97860.0,97859.0,0.11650365]
[1739233976490,0.16306155,97860.0,97859.0,0.11650365]
[1739233977226,0.31328563,97860.0,97859.0,0.014]
[1739233977434,0.39064607,97860.0,97859.0,0.014]
[1739233982296,0.42256679,97860.0,97859.0,0.014]
[1739233982950,0.34392896,97860.0,97859.0,0.014]
[1739233983155,0.31200824,97860.0,97859.0,0.014]
[1739233984360,0.00872824,97860.0,97859.0,0.19810365]
[1739233984786,0.00122408,97860.0,97859.0,0.19810365]
[1739233984990,0.02786724,97860.0,97859.0,0.19810365]
[1739233985143,0.02037034,97860.0,97859.0,0.19810365]
[1739233985573,0.02786318,97860.0,97859.0,0.19810365]
[1739233987752,0.00871692,97860.0,97859.0,0.19810365]
[1739233989018,0.00122408,97860.0,97859.0,0.19810365]
[1739233989238,0.00871618,97860.0,97859.0,0.19810365]
[1739233989434,0.00122408,97860.0,97859.0,0.19810365]
[1739233989957,0.00122408,97860.0,97859.0,0.35138465]
[1739233990594,0.00122408,97860.0,97859.0,0.43445624]
[1739233990801,0.00122408,97860.0,97859.0,0.35138465]
[1739233991018,0.00122408,97860.0,97859.0,0.39988465]
[1739233992375,0.00122408,97860.0,97859.0,0.39488465]
[1739233992571,0.00122408,97860.0,97859.0,0.40188465]
[1739233992572,0.00222408,97860.0,97859.0,0.40188465]
[1739233992770,0.00122408,97860.0,97859.0,0.39288465]
[1739233992987,0.00122408,97860.0,97859.0,0.47515564]
[1739233993190,0.00222408,97860.0,97859.0,0.40788465]
[1739233998915,0.00222408,97860.0,97859.0,0.12450365]
[1739233999123,0.00222408,97860.0,97859.0,0.13214365]
[1739233999666,0.00222408,97860.0,97859.0,0.12450365]
[1739233999860,0.02531729,97860.0,97859.0,0.13214365]
[1739234000065,0.15550408,97860.0,97859.0,0.13214365]
[1739234000268,0.16302247,97860.0,97859.0,0.13214365]
[1739234002538,0.17340586,97860.0,97859.0,0.13214365]
[1739234002745,0.23177009,97860.0,97859.0,0.13214365]
[1739234004555,0.23177009,97860.0,97859.0,0.12450365]
[1739234006217,0.17340586,97860.0,97859.0,0.12450365]
[1739234012174,0.17468324,97860.0,97859.0,0.022]
[1739234012627,0.17340586,97860.0,97859.0,0.022]
[1739234013380,0.17340586,97860.0,97859.0,0.12450365]
[1739234014917,0.02012586,97860.0,97859.0,0.12450365]
[1739234015139,0.01260747,97860.0,97859.0,0.12450365]
[1739234015344,0.02010869,97860.0,97859.0,0.12450365]
[1739234016706,0.0097253,97860.0,97859.0,0.12450365]
[1739234016875,0.0097253,97860.0,97859.0,0.20740365]
[1739234017279,0.00222408,97860.0,97859.0,0.20740365]
[1739234017685,0.00222408,97860.0,97859.0,0.27140545]
[1739234017896,0.00222408,97860.0,97859.0,0.20740365]
[1739234021866,0.00222408,97860.0,97859.0,0.22753462]
[1739234022880,0.00222408,97860.0,97859.0,0.14463462]
[1739234023100,0.00973537,97860.0,97859.0,0.12450365]
[1739234023614,0.00222408,97860.0,97859.0,0.12450365]
[1739234024044,0.00222408,97860.0,97859.0,0.40221726]
[1739234024246,0.00932765,97860.0,97859.0,0.40221726]
[1739234024447,0.00222408,97860.0,97859.0,0.40221726]
[1739234025333,0.00222408,97860.0,97859.0,0.44891726]
[1739234025541,0.00222408,97860.0,97859.0,0.47191726]
[1739234026117,0.00122408,97860.0,97859.0,0.45691726]
[1739234026316,0.00022408,97860.0,97859.0,0.44991726]
[1739234026545,0.00122408,97860.0,97859.0,1.96491726]
[1739234026748,0.00122408,97860.0,97859.0,1.97191726]
[1739234027971,0.00022408,97860.0,97859.0,1.95691726]
[1739234028174,0.00022408,97860.0,97859.0,1.96727124]
[1739234028311,0.00022408,97860.0,97859.0,1.98227124]
[1739234029993,0.00022408,97860.0,97859.0,2.30387124]
[1739234030492,0.00022408,97860.0,97859.0,0.80387124]
[1739234031196,0.00022408,97860.0,97859.0,0.79351726]
[1739234031413,0.00022408,97860.0,97859.0,0.72898465]
[1739234031617,0.00022408,97860.0,97859.0,0.73654465]
[1739234032018,0.00022408,97860.0,97859.0,0.72898465]
[1739234032225,0.00022408,97860.0,97859.0,0.73658465]
[1739234033527,0.00022408,97860.0,97859.0,0.81066327]
[1739234034123,0.00022408,97860.0,97859.0,0.73658465]
[1739234035518,0.00022408,97860.0,97859.0,0.73654465]
[1739234038553,0.00022408,97860.0,97859.0,0.87558465]
[1739234039159,0.00022408,97860.0,97859.0,0.89858465]
[1739234039335,0.00022408,97860.0,97859.0,1.00084135]
[1739234040545,0.00022408,97860.0,97859.0,1.02177169]
[1739234040705,0.00022408,97860.0,97859.0,2.52177169]
[1739234042379,0.00022408,97860.0,97859.0,2.53177169]
[1739234043573,0.00022408,97860.0,97859.0,1.03177169]
[1739234044200,0.00022408,97860.0,97859.0,2.53177169]
[1739234044395,0.00022408,97860.0,97859.0,2.69177169]
[1739234045462,0.00022408,97860.0,97859.0,2.68177169]
[1739234047160,0.00022408,97860.0,97859.0,2.69177169]
[1739234049877,0.00022408,97860.0,97859.0,1.19177169]
[1739234050432,0.00022408,97860.0,97859.0,2.69177169]
[1739234052031,0.00022408,97860.0,97859.0,2.68477169]
[1739234052216,0.00022408,97860.0,97859.0,2.69177169]
[1739234052752,0.00022408,97860.0,97859.0,2.67677169]
[1739234053034,0.00022408,97860.0,97859.0,2.69177169]
[1739234054210,0.00022408,97867.0,97866.0,0.39097]
[1739234054419,0.00022408,97867.0,97866.0,0.56427365]
[1739234054639,0.00022408,97867.0,97866.0,0.57427365]
[1739234055523,0.00022408,97867.0,97866.0,0.58127365]
[1739234056070,0.00022408,97867.0,97866.0,0.60327365]
[1739234056194,0.00022408,97867.0,97866.0,0.7057773]
[1739234056394,0.00022408,97867.0,97866.0,0.26328095]
[1739234056631,0.00022408,97867.0,97866.0,0.27828095]
[1739234056851,0.00022408,97867.0,97866.0,0.43155095]
[1739234057228,0.00022408,97867.0,97866.0,0.41655095]
[1739234057654,0.00022408,97867.0,97866.0,0.43155095]
[1739234057859,0.00022408,97867.0,97866.0,1.93155095]
[1739234058584,0.00022408,97867.0,97866.0,1.94755095]
[1739234058732,0.00022408,97867.0,97866.0,1.94055095]
[1739234059222,0.00022408,97867.0,97866.0,1.94755095]
[1739234059418,0.00022408,97867.0,97866.0,2.02525095]
[1739234059655,0.00022408,97867.0,97866.0,2.88875544]
[1739234060273,0.00022408,97867.0,97866.0,1.14127814]
[1739234060520,0.00022408,97867.0,97866.0,1.15127814]
[1739234060720,0.00022408,97867.0,97866.0,1.14127814]
[1739234061204,0.00022408,97867.0,97866.0,1.13627814]
[1739234061785,0.00022408,97867.0,97866.0,1.12927814]
[1739234061996,0.00022408,97867.0,97866.0,1.22878179]
[1739234062174,0.00022408,97867.0,97866.0,1.24634179]
[1739234062379,0.00022408,97867.0,97866.0,1.38538179]
[1739234063171,0.00022408,97867.0,97866.0,1.40038179]
[1739234063896,0.00022408,97867.0,97866.0,0.61050814]
[1739234064077,0.00022408,97867.0,97866.0,0.71301179]
[1739234064392,0.00022408,97867.0,97866.0,2.36628179]
[1739234065352,0.0488,97887.0,97886.0,0.153239]
[1739234065542,0.0488,97887.0,97886.0,0.27106655]
[1739234065767,0.05595242,97887.0,97886.0,0.27106655]
[1739234066006,0.0756,97891.0,97890.0,0.153233]
[1739234066227,0.0756,97891.0,97890.0,0.25573665]
[1739234066444,0.0756,97891.0,97890.0,0.32370671]
[1739234067124,0.0756,97891.0,97890.0,0.33128734]
[1739234067301,0.0756,97891.0,97890.0,0.33136402]
[1739234067660,0.0756,97891.0,97890.0,0.34636402]
[1739234068141,0.0756,97891.0,97890.0,0.19313102]
[1739234068314,0.0756,97891.0,97890.0,0.13216096]
[1739234071983,0.0757066,97891.0,97890.0,0.13216096]
[1739234072610,0.0001066,97891.0,97890.0,0.13216096]
[1739234074455,0.0001066,97901.0,97900.0,0.153217]
[1739234074661,0.0001066,97901.0,97900.0,0.26344065]
[1739234074874,0.00726409,97901.0,97900.0,0.28978472]
[1739234075084,0.0001066,97901.0,97900.0,0.28978472]
[1739234075291,0.00726409,97901.0,97900.0,0.30495232]
[1739234075495,0.0001066,97901.0,97900.0,0.35045234]
[1739234076149,0.0001066,97901.0,97900.0,0.35745234]
[1739234076771,0.0001066,97901.0,97900.0,0.37245234]
[1739234076977,0.0001066,97901.0,97900.0,0.21923534]
[1739234078464,0.0001066,97901.0,97900.0,0.18131595]
[1739234080260,0.0001066,97901.0,97900.0,0.16614835]
[1739234086259,0.0763066,97901.0,97900.0,0.16614835]
[1739234086458,0.08347961,97901.0,97900.0,0.16614835]
[1739234086867,0.00727961,97901.0,97900.0,0.16614835]
[1739234087068,0.0001066,97901.0,97900.0,0.16614835]
[1739234087286,0.00727923,97901.0,97900.0,0.16614835]
[1739234087574,0.0001066,97901.0,97900.0,0.16614835]
[1739234087730,0.00727824,97901.0,97900.0,0.16614835]
[1739234087948,0.0001066,97901.0,97900.0,0.16614835]
[1739234088150,0.0101066,97901.0,97900.0,0.13988428]
[1739234088345,0.01727824,97901.0,97900.0,0.13988428]
[1739234089231,0.09347824,97901.0,97900.0,0.13208428]
[1739234089467,0.24669424,97901.0,97900.0,0.13988428]
[1739234089683,0.39669424,97901.0,97900.0,0.13988428]
[1739234089885,0.25384322,97901.0,97900.0,0.13988428]
[1739234090154,0.25384322,97901.0,97900.0,0.13230365]
[1739234090310,0.25384322,97901.0,97900.0,0.11730365]
[1739234090512,0.25384322,97901.0,97900.0,0.13230365]
[1739234091026,0.30374322,97901.0,97900.0,0.0298]
[1739234091228,0.32674322,97901.0,97900.0,0.0228]
[1739234091435,0.32674322,97901.0,97900.0,0.015]
[1739234091614,0.32674322,97901.0,97900.0,0.0298]
[1739234091748,0.32674322,97901.0,97900.0,0.0228]
[1739234092171,0.32674322,97901.0,97900.0,0.0128]
[1739234092400,0.32674322,97901.0,97900.0,0.0178]
[1739234092822,0.30374322,97901.0,97900.0,0.11530365]
[1739234093025,0.29337824,97901.0,97900.0,0.11530365]
[1739234093304,0.29337824,97901.0,97900.0,0.12530365]
[1739234093799,0.29337824,97901.0,97900.0,0.11530365]
[1739234094011,0.29337824,97901.0,97900.0,0.12530365]
[1739234094541,0.29337824,97901.0,97900.0,0.12030365]
[1739234094739,0.29337824,97901.0,97900.0,0.12630365]
[1739234094947,0.29337824,97901.0,97900.0,0.12030365]
[1739234095124,0.14337824,97901.0,97900.0,0.12030365]
[1739234095335,0.14337824,97901.0,97900.0,0.02701599]
[1739234095529,0.01727824,97901.0,97900.0,0.03401599]
[1739234096162,0.01727824,97901.0,97900.0,0.04701599]
[1739234096670,0.01727824,97901.0,97900.0,0.03401599]
[1739234096888,0.01727824,97901.0,97900.0,0.04701599]
[1739234097328,0.01727824,97901.0,97900.0,0.03921599]
[1739234097529,0.01727824,97901.0,97900.0,0.04001599]
[1739234097662,0.01727824,97901.0,97900.0,0.04701599]
[1739234105781,0.00727824,97901.0,97900.0,0.20023299]
[1739234105989,0.0869,97932.0,97901.0,0.0801]
[1739234106207,0.00728148,97930.0,97913.0,0.10250365]
[1739234106445,0.0001066,97931.0,97928.0,0.153172]
[1739234106651,0.0001066,97931.0,97929.0,0.10250365]
[1739234107056,0.0001066,97931.0,97930.0,0.08171854]
[1739234107324,0.0001066,97931.0,97930.0,0.33739219]
[1739234107478,0.0001066,97931.0,97930.0,0.39155471]
[1739234107687,0.00023931,97931.0,97930.0,0.39155471]
[1739234107885,0.00023931,97931.0,97930.0,0.4193676]
[1739234108354,0.00785899,97945.0,97930.0,0.2731976]
[1739234108555,0.0001066,97951.0,97933.0,0.10250365]
[1739234108734,0.00730186,97944.0,97934.0,0.11030365]
[1739234108888,0.33015899,97950.0,97934.0,0.11030365]
[1739234109092,0.00730143,97943.0,97934.0,0.11030365]
[1739234109315,0.33015899,97950.0,97935.0,0.05218957]
[1739234109523,0.33015899,97950.0,97936.0,0.30671765]
[1739234109722,0.00730359,97948.0,97939.0,0.153156]
[1739234110007,0.00785899,97941.0,97940.0,0.10250365]
[1739234110212,0.00785899,97941.0,97940.0,0.11030365]
[1739234110213,0.16101199,97941.0,97940.0,0.11030365]
[1739234110602,0.16831255,97941.0,97940.0,0.11030365]
[1739234110808,0.16831255,97941.0,97930.0,0.11394847]
[1739234110997,0.16102399,97934.0,97931.0,0.1216985]
[1739234111207,0.00785899,97932.0,97931.0,0.1216985]
[1739234112153,0.0151561,97932.0,97931.0,0.1336985]
[1739234112289,0.0151561,97932.0,97931.0,0.1406985]
[1739234112495,0.0151561,97932.0,97931.0,0.12930365]
[1739234112708,0.0151561,97932.0,97931.0,0.11730365]
[1739234112889,0.0151561,97932.0,97931.0,0.13130365]
[1739234113091,0.00729711,97932.0,97931.0,0.28447265]
[1739234113427,0.00785899,97948.0,97932.0,0.204222]
[1739234113628,0.00130531,97949.0,97933.0,0.14626907]
[1739234113834,0.00785899,97948.0,97939.0,0.204206]
[1739234114050,0.00785899,97948.0,97940.0,0.10250365]
[1739234114214,0.00785899,97948.0,97941.0,0.08171854]
[1739234114423,0.00130531,97949.0,97942.0,0.30981327]
[1739234114650,0.00130531,97949.0,97942.0,0.15666227]
[1739234114828,0.00130531,97949.0,97943.0,0.153149]
[1739234115176,0.00130531,97949.0,97944.0,0.10250365]
[1739234115536,0.00668451,97948.0,97944.0,0.10250365]
[1739234115736,0.00130531,97949.0,97944.0,0.10250365]
[1739234116167,0.00668862,97948.0,97947.0,0.02049677]
[1739234116377,0.00668862,97948.0,97947.0,0.12300042]
[1739234116587,0.00130531,97949.0,97947.0,0.12300042]
[1739234116782,0.00130531,97949.0,97948.0,0.10250365]
[1739234117084,0.00130531,97949.0,97948.0,0.13859085]
[1739234117259,0.00130531,97949.0,97948.0,0.10250365]
[1739234118279,0.00785899,97945.0,97944.0,0.003]
[1739234118490,0.00785899,97945.0,97944.0,0.11330365]
[1739234118688,0.01454689,97945.0,97944.0,0.13345299]
[1739234118851,0.01454689,97945.0,97944.0,0.0078]
[1739234118852,0.16769389,97945.0,97944.0,0.0078]
[1739234119052,0.16100999,97942.0,97941.0,0.08171854]
[1739234119305,0.24140999,97942.0,97941.0,0.08951854]
[1739234119478,0.24809634,97942.0,97941.0,0.08951854]
[1739234119853,0.09494534,97942.0,97941.0,0.08951854]
[1739234120515,0.09494534,97942.0,97941.0,0.09847039]
[1739234120718,0.09494534,97942.0,97941.0,0.08951854]
[1739234121289,0.09494534,97942.0,97941.0,0.09851854]
[1739234121496,0.26794534,97942.0,97941.0,0.009]
[1739234121881,0.18402099,97935.0,97934.0,0.0078]
[1739234122253,0.19067731,97935.0,97934.0,0.0078]
[1739234123271,0.19067731,97935.0,97934.0,0.0118]